Workbook

Sheet Dashboard
B2: NLP Platform | C2: Chatbot | D2: Ask Ubuntu | E2: Web Applications | F2: Overall
B3: NLP.js | C3: =NLP.js!H18 -> 0.9905660377 | D3: =NLP.js!H19 -> 0.9444444444 | E3: =NLP.js!H20 -> 0.7966101695 | F3: =NLP.js!H17 -> 0.9304029304
B4: Watson | C4: =Watson!H18 -> 0.9716981132 | D4: =Watson!H19 -> 0.9174311927 | E4: =Watson!H20 -> 0.8305084746 | F4: =Watson!H17 -> 0.9197080292
B5: LUIS | C5: =LUIS!H18 -> 0.9811320755 | D5: =LUIS!H19 -> 0.8990825688 | E5: =LUIS!H20 -> 0.813559322 | F5: =LUIS!H17 -> 0.9124087591
B6: Botfuel | C6: =Botfuel!H18 -> 0.9811320755 | D6: =Botfuel!H19 -> 0.8940092166 | E6: =Botfuel!H20 -> 0.7966101695 | F6: =Botfuel!H17 -> 0.9067641682
B7: Recast | C7: =Recast!H18 -> 0.9905660377 | D7: =Recast!H19 -> 0.8623853211 | E7: =Recast!H20 -> 0.7457627119 | F7: =Recast!H17 -> 0.8868613139
B8: RASA | C8: =RASA!H18 -> 0.9811320755 | D8: =RASA!H19 -> 0.8623853211 | E8: =RASA!H20 -> 0.7457627119 | F8: =RASA!H17 -> 0.8832116788
B9: DialogFlow | C9: =DialogFlow!H18 -> 0.9268292683 | D9: =DialogFlow!H19 -> 0.8532110092 | E9: =DialogFlow!H20 -> 0.8034188034 | F9: =DialogFlow!H17 -> 0.8703703704

Sheet NLP.js
A1: Column1 | B1: intent | C1: true + | D1: false - | E1: false + | F1: precision | G1: recall | H1: f1
A2: chatbot | B2: FindConnection | C2: 70 | D2: 0 | E2: 1 | F2: =C2/(C2+E2) -> 0.985915493 | G2: =C2/(C2+D2) -> 1 | H2: =2*(F2*G2)/(F2+G2) -> 0.9929078014
A3: chatbot | B3: DepartureTime | C3: 35 | D3: 1 | E3: 0 | F3: =C3/(C3+E3) -> 1 | G3: =C3/(C3+D3) -> 0.9722222222 | H3: =2*(F3*G3)/(F3+G3) -> 0.985915493
A4: askUbuntu | B4: Software Recommendation | C4: 35 | D4: 1 | E4: 4 | F4: =C4/(C4+E4) -> 0.8974358974 | G4: =C4/(C4+D4) -> 0.9722222222 | H4: =2*(F4*G4)/(F4+G4) -> 0.9333333333
A5: askUbuntu | B5: None | C5: 3 | D5: 1 | E5: 2 | F5: 0.6 | G5: 0.75 | H5: 0.6666666667
A6: askUbuntu | B6: Shutdown Computer | C6: 14 | D6: 2 | E6: 0 | F6: 1 | G6: 0.875 | H6: 0.9333333333
A7: askUbuntu | B7: Make Update | C7: 37 | D7: 2 | E7: 0 | F7: 1 | G7: 0.9487179487 | H7: 0.9736842105
A8: askUbuntu | B8: Setup Printer | C8: 13 | D8: 0 | E8: 0 | F8: 1 | G8: 1 | H8: 1
A9: webApp | B9: Find Alternative | C9: 16 | D9: 3 | E9: 0 | F9: 1 | G9: 0.8421052632 | H9: 0.9142857143
A10: webApp | B10: Delete Account | C10: 9 | D10: 4 | E10: 1 | F10: 0.9 | G10: 0.6923076923 | H10: 0.7826086957
A11: webApp | B11: Export Data | C11: 2 | D11: 3 | E11: 1 | F11: 0.6666666667 | G11: 0.4 | H11: 0.5
A12: webApp | B12: Sync Accounts | C12: 4 | D12: 0 | E12: 2 | F12: 0.6666666667 | G12: 1 | H12: 0.8
A13: webApp | B13: None | C13: 0 | D13: 0 | E13: 4 | F13: 0
A14: webApp | B14: Change Password | C14: 3 | D14: 0 | E14: 3 | F14: 0.5 | G14: 1 | H14: 0.6666666667
A15: webApp | B15: Filter Spam | C15: 13 | D15: 1 | E15: 1 | F15: 0.9285714286 | G15: 0.9285714286 | H15: 0.9285714286
A16: webApp | B16: Download Video | C16: 0 | D16: 1 | E16: 0 | G16: 0
A17: Total | C17: =SUM(C2:C16) -> 254 | D17: =SUM(D2:D16) -> 19 | E17: =SUM(E2:E16) -> 19 | F17: 0.9304029304 | G17: 0.9304029304 | H17: 0.9304029304
A18: Total Chatbot | C18: =C2+C3 -> 105 | D18: =D2+D3 -> 1 | E18: =E2+E3 -> 1 | F18: 0.9905660377 | G18: 0.9905660377 | H18: 0.9905660377
A19: Total askUbuntu | C19: =SUM(C4:C8) -> 102 | D19: =SUM(D4:D8) -> 6 | E19: =SUM(E4:E8) -> 6 | F19: 0.9444444444 | G19: 0.9444444444 | H19: 0.9444444444
A20: Total webApp | C20: =SUM(C9:C16) -> 47 | D20: =SUM(D9:D16) -> 12 | E20: =SUM(E9:E16) -> 12 | F20: 0.7966101695 | G20: 0.7966101695 | H20: 0.7966101695

Sheet Watson
A1: Column1 | B1: intent | C1: true + | D1: false - | E1: false + | F1: precision | G1: recall | H1: f1
A2: chatbot | B2: FindConnection | C2: 70 | D2: 1 | E2: 2 | F2: =C2/(C2+E2) -> 0.9722222222 | G2: =C2/(C2+D2) -> 0.985915493 | H2: =2*(F2*G2)/(F2+G2) -> 0.979020979
A3: chatbot | B3: DepartureTime | C3: 33 | D3: 2 | E3: 1 | F3: =C3/(C3+E3) -> 0.9705882353 | G3: =C3/(C3+D3) -> 0.9428571429 | H3: =2*(F3*G3)/(F3+G3) -> 0.9565217391
A4: askUbuntu | B4: Software Recommendation | C4: 35 | D4: 5 | E4: 3 | F4: =C4/(C4+E4) -> 0.9210526316 | G4: =C4/(C4+D4) -> 0.875 | H4: =2*(F4*G4)/(F4+G4) -> 0.8974358974
A5: askUbuntu | B5: None | C5: 1 | D5: 4 | E5: 1 | F5: 0.5 | G5: 0.2 | H5: 0.2857142857
A6: askUbuntu | B6: Shutdown Computer | C6: 14 | D6: 0 | E6: 0 | F6: 1 | G6: 1 | H6: 1
A7: askUbuntu | B7: Make Update | C7: 37 | D7: 0 | E7: 4 | F7: 0.9024390244 | G7: 1 | H7: 0.9487179487
A8: askUbuntu | B8: Setup Printer | C8: 13 | D8: 0 | E8: 1 | F8: 0.9285714286 | G8: 1 | H8: 0.962962963
A9: webApp | B9: Find Alternative | C9: 15 | D9: 1 | E9: 1 | F9: 0.9375 | G9: 0.9375 | H9: 0.9375
A10: webApp | B10: Delete Account | C10: 9 | D10: 1 | E10: 3 | F10: 0.75 | G10: 0.9 | H10: 0.8181818182
A11: webApp | B11: Export Data | C11: 2 | D11: 1 | E11: 2 | F11: 0.5 | G11: 0.6666666667 | H11: 0.5714285714
A12: webApp | B12: Sync Accounts | C12: 5 | D12: 1 | E12: 0 | F12: 1 | G12: 0.8333333333 | H12: 0.9090909091
A13: webApp | B13: None | C13: 0 | D13: 4 | E13: 1 | F13: 0 | G13: 0
A14: webApp | B14: Change Password | C14: 5 | D14: 1 | E14: 0 | F14: 1 | G14: 0.8333333333 | H14: 0.9090909091
A15: webApp | B15: Filter Spam | C15: 13 | D15: 1 | E15: 2 | F15: 0.8666666667 | G15: 0.9285714286 | H15: 0.8965517241
A16: webApp | B16: Download Video | C16: 0 | D16: 0 | E16: 1 | F16: 0
A17: Total | C17: =SUM(C2:C16) -> 252 | D17: =SUM(D2:D16) -> 22 | E17: =SUM(E2:E16) -> 22 | F17: 0.9197080292 | G17: 0.9197080292 | H17: 0.9197080292
A18: Total Chatbot | C18: =C2+C3 -> 103 | D18: =D2+D3 -> 3 | E18: =E2+E3 -> 3 | F18: 0.9716981132 | G18: 0.9716981132 | H18: 0.9716981132
A19: Total askUbuntu | C19: =SUM(C4:C8) -> 100 | D19: =SUM(D4:D8) -> 9 | E19: =SUM(E4:E8) -> 9 | F19: 0.9174311927 | G19: 0.9174311927 | H19: 0.9174311927
A20: Total webApp | C20: =SUM(C9:C16) -> 49 | D20: =SUM(D9:D16) -> 10 | E20: =SUM(E9:E16) -> 10 | F20: 0.8305084746 | G20: 0.8305084746 | H20: 0.8305084746

Sheet LUIS
A1: Column1 | B1: intent | C1: true + | D1: false - | E1: false + | F1: precision | G1: recall | H1: f1
A2: chatbot | B2: FindConnection | C2: 70 | D2: 1 | E2: 1 | F2: =C2/(C2+E2) -> 0.985915493 | G2: =C2/(C2+D2) -> 0.985915493 | H2: =2*(F2*G2)/(F2+G2) -> 0.985915493
A3: chatbot | B3: DepartureTime | C3: 34 | D3: 1 | E3: 1 | F3: =C3/(C3+E3) -> 0.9714285714 | G3: =C3/(C3+D3) -> 0.9714285714 | H3: =2*(F3*G3)/(F3+G3) -> 0.9714285714
A4: askUbuntu | B4: Software Recommendation | C4: 36 | D4: 4 | E4: 5 | F4: 0.8780487805 | G4: 0.9 | H4: 0.8888888889
A5: askUbuntu | B5: None | C5: 0 | D5: 5 | E5: 0 | G5: 0
A6: askUbuntu | B6: Shutdown Computer | C6: 14 | D6: 0 | E6: 0 | F6: 1 | G6: 1 | H6: 1
A7: askUbuntu | B7: Make Update | C7: 36 | D7: 1 | E7: 4 | F7: 0.9 | G7: 0.972972973 | H7: 0.9350649351
A8: askUbuntu | B8: Setup Printer | C8: 12 | D8: 1 | E8: 2 | F8: 0.8571428571 | G8: 0.9230769231 | H8: 0.8888888889
A9: webApp | B9: Find Alternative | C9: 14 | D9: 2 | E9: 2 | F9: 0.875 | G9: 0.875 | H9: 0.875
A10: webApp | B10: Delete Account | C10: 8 | D10: 2 | E10: 0 | F10: 1 | G10: 0.8 | H10: 0.8888888889
A11: webApp | B11: Export Data | C11: 3 | D11: 0 | E11: 1 | F11: 0.75 | G11: 1 | H11: 0.8571428571
A12: webApp | B12: Sync Accounts | C12: 5 | D12: 1 | E12: 0 | F12: 1 | G12: 0.8333333333 | H12: 0.9090909091
A13: webApp | B13: None | C13: 3 | D13: 1 | E13: 8 | F13: 0.2727272727 | G13: 0.75 | H13: 0.4
A14: webApp | B14: Change Password | C14: 3 | D14: 3 | E14: 0 | F14: 1 | G14: 0.5 | H14: 0.6666666667
A15: webApp | B15: Filter Spam | C15: 12 | D15: 2 | E15: 0 | F15: 1 | G15: 0.8571428571 | H15: 0.9230769231
A16: webApp | B16: Download Video | C16: 0 | D16: 0 | E16: 0
A17: Total | C17: =SUM(C2:C16) -> 250 | D17: =SUM(D2:D16) -> 24 | E17: =SUM(E2:E16) -> 24 | F17: =C17/(C17+E17) -> 0.9124087591 | G17: =C17/(C17+D17) -> 0.9124087591 | H17: =2*(F17*G17)/(F17+G17) -> 0.9124087591
A18: Total Chatbot | C18: =C2+C3 -> 104 | D18: =D2+D3 -> 2 | E18: =E2+E3 -> 2 | F18: 0.9811320755 | G18: 0.9811320755 | H18: 0.9811320755
A19: Total askUbuntu | C19: =SUM(C4:C8) -> 98 | D19: =SUM(D4:D8) -> 11 | E19: =SUM(E4:E8) -> 11 | F19: 0.8990825688 | G19: 0.8990825688 | H19: 0.8990825688
A20: Total webApp | C20: =SUM(C9:C16) -> 48 | D20: =SUM(D9:D16) -> 11 | E20: =SUM(E9:E16) -> 11 | F20: 0.813559322 | G20: 0.813559322 | H20: 0.813559322

Sheet Botfuel
A1: Column1 | B1: intent | C1: true + | D1: false - | E1: false + | F1: precision | G1: recall | H1: f1
A2: chatbot | B2: FindConnection | C2: 69 | D2: 2 | E2: 0 | F2: =C2/(C2+E2) -> 1 | G2: =C2/(C2+D2) -> 0.9718309859 | H2: =2*(F2*G2)/(F2+G2) -> 0.9857142857
A3: chatbot | B3: DepartureTime | C3: 35 | D3: 0 | E3: 2 | F3: =C3/(C3+E3) -> 0.9459459459 | G3: =C3/(C3+D3) -> 1 | H3: =2*(F3*G3)/(F3+G3) -> 0.9722222222
A4: askUbuntu | B4: Software Recommendation | C4: 33 | D4: 7 | E4: 1 | F4: 0.9705882353 | G4: 0.825 | H4: 0.8918918919
A5: askUbuntu | B5: None | C5: 1 | D5: 4 | E5: 0 | F5: 1 | G5: 0.2 | H5: 0.3333333333
A6: askUbuntu | B6: Shutdown Computer | C6: 14 | D6: 0 | E6: 2 | F6: 0.875 | G6: 1 | H6: 0.9333333333
A7: askUbuntu | B7: Make Update | C7: 37 | D7: 0 | E7: 6 | F7: 0.8604651163 | G7: 1 | H7: 0.925
A8: askUbuntu | B8: Setup Printer | C8: 12 | D8: 1 | E8: 2 | F8: 0.8571428571 | G8: 0.9230769231 | H8: 0.8888888889
A9: webApp | B9: Find Alternative | C9: 16 | D9: 0 | E9: 4 | F9: 0.8 | G9: 1 | H9: 0.8888888889
A10: webApp | B10: Delete Account | C10: 9 | D10: 1 | E10: 3 | F10: 0.75 | G10: 0.9 | H10: 0.8181818182
A11: webApp | B11: Export Data | C11: 2 | D11: 1 | E11: 2 | F11: 0.5 | G11: 0.6666666667 | H11: 0.5714285714
A12: webApp | B12: Sync Accounts | C12: 4 | D12: 2 | E12: 0 | F12: 1 | G12: 0.6666666667 | H12: 0.8
A13: webApp | B13: None | C13: 0 | D13: 4 | E13: 0 | G13: 0
A14: webApp | B14: Change Password | C14: 4 | D14: 2 | E14: 1 | F14: 0.8 | G14: 0.6666666667 | H14: 0.7272727273
A15: webApp | B15: Filter Spam | C15: 12 | D15: 2 | E15: 1 | F15: 0.9230769231 | G15: 0.8571428571 | H15: 0.8888888889
A16: webApp | B16: Download Video | C16: 0 | D16: 0 | E16: 1 | F16: 0
A17: Total | C17: =SUM(C2:C16) -> 248 | D17: =SUM(D2:D16) -> 26 | E17: =SUM(E2:E16) -> 25 | F17: =C17/(C17+E17) -> 0.9084249084 | G17: =C17/(C17+D17) -> 0.9051094891 | H17: =2*(F17*G17)/(F17+G17) -> 0.9067641682
A18: Total Chatbot | C18: =C2+C3 -> 104 | D18: =D2+D3 -> 2 | E18: =E2+E3 -> 2 | F18: 0.9811320755 | G18: 0.9811320755 | H18: 0.9811320755
A19: Total askUbuntu | C19: =SUM(C4:C8) -> 97 | D19: =SUM(D4:D8) -> 12 | E19: =SUM(E4:E8) -> 11 | F19: 0.8981481481 | G19: 0.8899082569 | H19: 0.8940092166
A20: Total webApp | C20: =SUM(C9:C16) -> 47 | D20: =SUM(D9:D16) -> 12 | E20: =SUM(E9:E16) -> 12 | F20: 0.7966101695 | G20: 0.7966101695 | H20: 0.7966101695

Sheet Recast
A1: Column1 | B1: intent | C1: true + | D1: false - | E1: false + | F1: precision | G1: recall | H1: f1
A2: chatbot | B2: FindConnection | C2: 70 | D2: 1 | E2: 0 | F2: =C2/(C2+E2) -> 1 | G2: =C2/(C2+D2) -> 0.985915493 | H2: =2*(F2*G2)/(F2+G2) -> 0.9929078014
A3: chatbot | B3: DepartureTime | C3: 35 | D3: 0 | E3: 1 | F3: =C3/(C3+E3) -> 0.9722222222 | G3: =C3/(C3+D3) -> 1 | H3: =2*(F3*G3)/(F3+G3) -> 0.985915493
A4: askUbuntu | B4: Software Recommendation | C4: 29 | D4: 11 | E4: 1 | F4: 0.9666666667 | G4: 0.725 | H4: 0.8285714286
A5: askUbuntu | B5: None | C5: 1 | D5: 4 | E5: 0 | F5: 1 | G5: 0.2 | H5: 0.3333333333
A6: askUbuntu | B6: Shutdown Computer | C6: 14 | D6: 0 | E6: 6 | F6: 0.7 | G6: 1 | H6: 0.8235294118
A7: askUbuntu | B7: Make Update | C7: 37 | D7: 0 | E7: 7 | F7: 0.8409090909 | G7: 1 | H7: 0.9135802469
A8: askUbuntu | B8: Setup Printer | C8: 13 | D8: 0 | E8: 1 | F8: 0.9285714286 | G8: 1 | H8: 0.962962963
A9: webApp | B9: Find Alternative | C9: 15 | D9: 1 | E9: 3 | F9: 0.8333333333 | G9: 0.9375 | H9: 0.8823529412
A10: webApp | B10: Delete Account | C10: 9 | D10: 1 | E10: 5 | F10: 0.6428571429 | G10: 0.9 | H10: 0.75
A11: webApp | B11: Export Data | C11: 2 | D11: 1 | E11: 4 | F11: 0.3333333333 | G11: 0.6666666667 | H11: 0.4444444444
A12: webApp | B12: Sync Accounts | C12: 3 | D12: 3 | E12: 0 | F12: 1 | G12: 0.5 | H12: 0.6666666667
A13: webApp | B13: None | C13: 1 | D13: 3 | E13: 1 | G13: 0.25
A14: webApp | B14: Change Password | C14: 4 | D14: 2 | E14: 1 | F14: 0.8 | G14: 0.6666666667 | H14: 0.7272727273
A15: webApp | B15: Filter Spam | C15: 10 | D15: 4 | E15: 1 | F15: 0.9090909091 | G15: 0.7142857143 | H15: 0.8
A16: webApp | B16: Download Video | C16: 0 | D16: 0 | E16: 0
A17: Total | C17: =SUM(C2:C16) -> 243 | D17: =SUM(D2:D16) -> 31 | E17: =SUM(E2:E16) -> 31 | F17: 0.8868613139 | G17: =C17/(C17+D17) -> 0.8868613139 | H17: =2*(F17*G17)/(F17+G17) -> 0.8868613139
A18: Total Chatbot | C18: =C2+C3 -> 105 | D18: =D2+D3 -> 1 | E18: =E2+E3 -> 1 | F18: 0.9905660377 | G18: 0.9905660377 | H18: 0.9905660377
A19: Total askUbuntu | C19: =SUM(C4:C8) -> 94 | D19: =SUM(D4:D8) -> 15 | E19: =SUM(E4:E8) -> 15 | F19: 0.8623853211 | G19: 0.8623853211 | H19: 0.8623853211
A20: Total webApp | C20: =SUM(C9:C16) -> 44 | D20: =SUM(D9:D16) -> 15 | E20: =SUM(E9:E16) -> 15 | F20: 0.7457627119 | G20: 0.7457627119 | H20: 0.7457627119

Sheet RASA
A1: Column1 | B1: intent | C1: true + | D1: false - | E1: false + | F1: precision | G1: recall | H1: f1
A2: chatbot | B2: FindConnection | C2: 70 | D2: 1 | E2: 1 | F2: =C2/(C2+E2) -> 0.985915493 | G2: =C2/(C2+D2) -> 0.985915493 | H2: =2*(F2*G2)/(F2+G2) -> 0.985915493
A3: chatbot | B3: DepartureTime | C3: 34 | D3: 1 | E3: 1 | F3: =C3/(C3+E3) -> 0.9714285714 | G3: =C3/(C3+D3) -> 0.9714285714 | H3: =2*(F3*G3)/(F3+G3) -> 0.9714285714
A4: askUbuntu | B4: Software Recommendation | C4: 33 | D4: 7 | E4: 4 | F4: =C4/(C4+E4) -> 0.8918918919 | G4: =C4/(C4+D4) -> 0.825 | H4: =2*(F4*G4)/(F4+G4) -> 0.8571428571
A5: askUbuntu | B5: None | C5: 0 | D5: 5 | E5: 1 | F5: 0 | G5: 0
A6: askUbuntu | B6: Shutdown Computer | C6: 14 | D6: 0 | E6: 6 | F6: 0.7 | G6: 1 | H6: 0.8235294118
A7: askUbuntu | B7: Make Update | C7: 34 | D7: 3 | E7: 2 | F7: 0.9444444444 | G7: 0.9189189189 | H7: 0.9315068493
A8: askUbuntu | B8: Setup Printer | C8: 13 | D8: 0 | E8: 2 | F8: 0.8666666667 | G8: 1 | H8: 0.9285714286
A9: webApp | B9: Find Alternative | C9: 15 | D9: 1 | E9: 8 | F9: 0.652173913 | G9: 0.9375 | H9: 0.7692307692
A10: webApp | B10: Delete Account | C10: 9 | D10: 1 | E10: 5 | F10: 0.6428571429 | G10: 0.9 | H10: 0.75
A11: webApp | B11: Export Data | C11: 0 | D11: 3 | E11: 0 | G11: 0
A12: webApp | B12: Sync Accounts | C12: 3 | D12: 3 | E12: 0 | F12: 1 | G12: 0.5 | H12: 0.6666666667
A13: webApp | B13: None | C13: 0 | D13: 4 | E13: 1 | F13: 0 | G13: 0
A14: webApp | B14: Change Password | C14: 4 | D14: 2 | E14: 0 | F14: 1 | G14: 0.6666666667 | H14: 0.8
A15: webApp | B15: Filter Spam | C15: 13 | D15: 1 | E15: 0 | F15: 1 | G15: 0.9285714286 | H15: 0.962962963
A16: webApp | B16: Download Video | C16: 0 | D16: 0 | E16: 1 | F16: 0
A17: Total | C17: =SUM(C2:C16) -> 242 | D17: =SUM(D2:D16) -> 32 | E17: =SUM(E2:E16) -> 32 | F17: 0.8832116788 | G17: 0.8832116788 | H17: 0.8832116788
A18: Total Chatbot | C18: =C2+C3 -> 104 | D18: =D2+D3 -> 2 | E18: =E2+E3 -> 2 | F18: 0.9811320755 | G18: 0.9811320755 | H18: 0.9811320755
A19: Total askUbuntu | C19: =SUM(C4:C8) -> 94 | D19: =SUM(D4:D8) -> 15 | E19: =SUM(E4:E8) -> 15 | F19: 0.8623853211 | G19: 0.8623853211 | H19: 0.8623853211
A20: Total webApp | C20: =SUM(C9:C16) -> 44 | D20: =SUM(D9:D16) -> 15 | E20: =SUM(E9:E16) -> 15 | F20: 0.7457627119 | G20: 0.7457627119 | H20: 0.7457627119

Sheet DialogFlow
A1: Column1 | B1: intent | C1: true + | D1: false - | E1: false + | F1: precision | G1: recall | H1: f1
A2: chatbot | B2: FindConnection | C2: 60 | D2: 11 | E2: 0 | F2: =C2/(C2+E2) -> 1 | G2: =C2/(C2+D2) -> 0.8450704225 | H2: =2*(F2*G2)/(F2+G2) -> 0.9160305344
A3: chatbot | B3: DepartureTime | C3: 35 | D3: 0 | E3: 4 | F3: =C3/(C3+E3) -> 0.8974358974 | G3: =C3/(C3+D3) -> 1 | H3: =2*(F3*G3)/(F3+G3) -> 0.9459459459
A4: askUbuntu | B4: Software Recommendation | C4: 28 | D4: 12 | E4: 2 | F4: 0.9333333333 | G4: 0.7 | H4: 0.8
A5: askUbuntu | B5: None | C5: 2 | D5: 3 | E5: 8 | F5: 0.2 | G5: 0.4 | H5: 0.2666666667
A6: askUbuntu | B6: Shutdown Computer | C6: 14 | D6: 0 | E6: 2 | F6: 0.875 | G6: 1 | H6: 0.9333333333
A7: askUbuntu | B7: Make Update | C7: 36 | D7: 1 | E7: 3 | F7: 0.9230769231 | G7: 0.972972973 | H7: 0.9473684211
A8: askUbuntu | B8: Setup Printer | C8: 13 | D8: 0 | E8: 1 | F8: 0.9285714286 | G8: 1 | H8: 0.962962963
A9: webApp | B9: Find Alternative | C9: 16 | D9: 0 | E9: 2 | F9: 0.8888888889 | G9: 1 | H9: 0.9411764706
A10: webApp | B10: Delete Account | C10: 10 | D10: 0 | E10: 2 | F10: 0.8333333333 | G10: 1 | H10: 0.9090909091
A11: webApp | B11: Export Data | C11: 1 | D11: 2 | E11: 2 | F11: 0.3333333333 | G11: 0.3333333333 | H11: 0.3333333333
A12: webApp | B12: Sync Accounts | C12: 4 | D12: 2 | E12: 0 | F12: 1 | G12: 0.6666666667 | H12: 0.8
A13: webApp | B13: None | C13: 2 | D13: 2 | E13: 1 | F13: 0.6666666667 | G13: 0.5 | H13: 0.5714285714
A14: webApp | B14: Change Password | C14: 4 | D14: 2 | E14: 1 | F14: 0.8 | G14: 0.6666666667 | H14: 0.7272727273
A15: webApp | B15: Filter Spam | C15: 10 | D15: 4 | E15: 3 | F15: 0.7692307692 | G15: 0.7142857143 | H15: 0.7407407407
A16: webApp | B16: Download Video | C16: 0 | D16: 0 | E16: 0
A17: Total | C17: =SUM(C2:C16) -> 235 | D17: =SUM(D2:D16) -> 39 | E17: =SUM(E2:E16) -> 31 | F17: 0.8834586466 | G17: 0.8576642336 | H17: 0.8703703704
A18: Total Chatbot | C18: =C2+C3 -> 95 | D18: =D2+D3 -> 11 | E18: =E2+E3 -> 4 | F18: 0.9595959596 | G18: 0.8962264151 | H18: 0.9268292683
A19: Total askUbuntu | C19: =SUM(C4:C8) -> 93 | D19: =SUM(D4:D8) -> 16 | E19: =SUM(E4:E8) -> 16 | F19: 0.8532110092 | G19: 0.8532110092 | H19: 0.8532110092
A20: Total webApp | C20: =SUM(C9:C16) -> 47 | D20: =SUM(D9:D16) -> 12 | E20: =SUM(E9:E16) -> 11 | F20: 0.8103448276 | G20: 0.7966101695 | H20: 0.8034188034
